bitfinex-derivatives/quotes_BTCF0:USTF0_20241003
["timestamp","ask_amount","ask_price","bid_price","bid_amount"]
[1727968762191,0.09488591,60283.0,60282.0,0.04578722]
[1727968762392,0.007,60285.0,60282.0,0.04578722]
[1727968762393,0.14809531,60284.0,60282.0,0.78764]
[1727968762591,0.24299798,60283.0,60282.0,0.29]
[1727968762791,0.24299798,60283.0,60282.0,0.372955]
[1727968762988,0.09488476,60283.0,60282.0,0.870595]
[1727968763192,0.14811425,60283.0,60282.0,0.082955]
[1727968763390,0.082961,60279.0,60276.0,0.082962]
[1727968763587,0.04394698,60278.0,60273.0,0.0331]
[1727968763787,0.082961,60279.0,60272.0,0.37914279]
[1727968763788,0.13165351,60275.0,60272.0,0.37914279]
[1727968763986,0.04312708,60274.0,60273.0,0.082968]
[1727968764193,0.21461451,60278.0,60277.0,0.082962]
[1727968764385,0.25797071,60278.0,60277.0,0.082962]
[1727968764586,0.17726325,60278.0,60277.0,0.082962]
[1727968764791,0.24239587,60278.0,60277.0,0.082962]
[1727968764991,0.09430225,60278.0,60277.0,1.180642]
[1727968765200,0.09430019,60278.0,60277.0,1.180642]
[1727968765395,0.0453562,60278.0,60277.0,1.180642]
[1727968765598,0.13163564,60282.0,60280.0,0.082958]
[1727968765900,0.13163564,60283.0,60282.0,0.082955]
[1727968766100,0.13163564,60284.0,60283.0,0.082954]
[1727968766298,0.16460819,60291.0,60284.0,0.082953]
[1727968766595,0.60227502,60304.0,60292.0,0.082942]
[1727968766596,0.16460819,60293.0,60292.0,0.082942]
[1727968766795,0.18131933,60297.0,60293.0,0.08294]
[1727968766998,0.23225787,60296.0,60295.0,0.082938]
[1727968767197,0.23225789,60296.0,60291.0,0.082943]
[1727968767401,0.24756298,60292.0,60291.0,0.082943]
[1727968767591,0.082949,60288.0,60283.0,0.00088]
[1727968767789,0.16458388,60286.0,60283.0,0.082954]
[1727968767986,0.05093856,60285.0,60283.0,0.082954]
[1727968768192,0.18131933,60285.0,60284.0,0.082953]
[1727968768399,0.10093152,60285.0,60284.0,0.580593]
[1727968768604,0.05093856,60285.0,60284.0,1.541393]
[1727968768794,0.001,60288.0,60287.0,0.082949]
[1727968769096,0.05195016,60288.0,60287.0,0.972949]
[1727968769301,0.05195016,60288.0,60287.0,1.470549]
[1727968769802,0.6198,60315.0,60287.0,1.470549]
[1727968769803,0.21394224,60303.0,60287.0,1.3876]
[1727968769993,0.21394224,60303.0,60302.0,0.082928]
[1727968770191,0.08292,60308.0,60298.0,0.29]
[1727968770387,0.08292,60308.0,60306.0,0.082922]
[1727968770691,0.082921,60307.0,60306.0,0.082922]
[1727968770888,0.03302073,60307.0,60298.0,0.29]
[1727968771095,0.001,60303.0,60302.0,0.082928]
[1727968771299,0.03402073,60303.0,60302.0,0.082928]
[1727968771505,0.03302073,60303.0,60302.0,0.082928]
[1727968771702,0.03206008,60303.0,60299.0,0.082932]
[1727968771902,0.03206008,60303.0,60298.0,0.15712459]
[1727968771903,0.03206008,60302.0,60301.0,0.082929]
[1727968772094,0.03206008,60302.0,60301.0,0.443729]
[1727968772295,0.03206008,60302.0,60301.0,1.541249]
[1727968773594,0.07269215,60302.0,60301.0,1.541249]
[1727968774204,0.07269215,60302.0,60301.0,0.443729]
[1727968774395,0.07369215,60302.0,60301.0,0.090929]
[1727968774794,0.16553072,60302.0,60301.0,0.090929]
[1727968775003,0.12561935,60302.0,60301.0,0.091929]
[1727968775797,0.20854735,60302.0,60301.0,0.009]
[1727968776193,0.20854735,60302.0,60289.0,0.3608]
[1727968776194,0.51842015,60302.0,60289.0,0.3608]
[1727968776401,0.3608,60291.0,60281.0,0.01807205]
[1727968776601,0.3608,60291.0,60274.0,0.684]
[1727968776602,0.29,60282.0,60274.0,0.3608]
[1727968776906,0.29,60282.0,60272.0,0.082969]
[1727968776907,0.082965,60275.0,60272.0,0.082969]
[1727968777104,0.29,60277.0,60261.0,0.0177832]
[1727968777301,0.29,60277.0,60269.0,0.082972]
[1727968777500,0.29,60277.0,60271.0,0.08297]
[1727968777694,0.03204939,60276.0,60261.0,0.0177832]
[1727968777905,0.3608,60278.0,60274.0,0.007]
[1727968778102,0.03205015,60277.0,60276.0,0.372964]
[1727968778595,0.03305015,60277.0,60276.0,0.372964]
[1727968779303,0.001,60277.0,60276.0,0.372964]
[1727968779802,0.001,60277.0,60276.0,0.082964]
[1727968779803,0.03305067,60277.0,60276.0,0.082964]
[1727968780003,0.11501267,60277.0,60276.0,0.082964]
[1727968780505,0.11501267,60277.0,60273.0,0.3608]
[1727968780506,0.082966,60274.0,60273.0,0.3608]
[1727968781005,0.1150186,60274.0,60273.0,0.443768]
[1727968781302,0.082966,60274.0,60273.0,0.443768]
[1727968781499,0.03205217,60274.0,60273.0,0.443768]
[1727968781706,0.03205217,60274.0,60273.0,0.444768]
[1727968781902,0.03205217,60274.0,60273.0,0.734768]
[1727968782812,0.03205217,60274.0,60273.0,0.001]
[1727968782813,0.11501817,60274.0,60273.0,0.001]
[1727968783202,0.08298,60264.0,60263.0,0.3608]
[1727968783504,0.08298,60264.0,60258.0,0.3608]
[1727968783505,0.082994,60254.0,60253.0,0.443795]
[1727968783709,0.082994,60254.0,60253.0,0.3608]
[1727968785002,0.003,60264.0,60253.0,0.6508]
[1727968785205,0.082982,60263.0,60257.0,0.08299]
[1727968785507,0.082987,60260.0,60259.0,0.082987]
[1727968786002,0.082977,60267.0,60253.0,0.6518]
[1727968786201,0.001,60254.0,60253.0,0.734795]
[1727968786407,0.001,60254.0,60253.0,0.373995]
[1727968787506,0.082986,60260.0,60249.0,0.29]
[1727968787507,0.082991,60257.0,60249.0,0.29]
[1727968787696,0.082991,60257.0,60247.0,0.3608]
[1727968787697,0.082999,60251.0,60250.0,0.082999]
[1727968787897,0.082999,60251.0,60247.0,0.3608]
[1727968787898,0.002,60260.0,60249.0,0.29]
[1727968788093,0.16241802,60267.0,60263.0,0.082981]
[1727968788094,0.082977,60267.0,60263.0,0.082981]
[1727968788301,0.0726951,60266.0,60264.0,0.08298]
[1727968788507,0.082984,60262.0,60257.0,0.082988]
[1727968788704,0.082988,60259.0,60250.0,0.082999]
[1727968788914,0.082988,60259.0,60255.0,0.082992]
[1727968789201,0.082988,60259.0,60244.0,0.373007]
[1727968789202,0.083003,60248.0,60244.0,0.083007]
[1727968789404,0.083003,60248.0,60247.0,0.083004]
[1727968789912,0.082993,60255.0,60243.0,0.083009]
[1727968790204,0.083004,60247.0,60243.0,0.083009]
[1727968790409,0.083004,60247.0,60241.0,0.01768108]
[1727968790604,0.083007,60245.0,60241.0,0.01768108]
[1727968790806,0.29,60256.0,60241.0,0.083011]
[1727968791104,0.29,60256.0,60244.0,0.083008]
[1727968791105,0.083008,60245.0,60244.0,0.083008]
[1727968791908,0.001,60245.0,60244.0,0.083008]
[1727968792299,0.001,60245.0,60244.0,1.180968]
[1727968794007,0.001,60245.0,60244.0,0.083008]
[1727968794497,0.001,60245.0,60244.0,1.180968]
[1727968796606,0.001,60245.0,60244.0,0.083008]
[1727968798117,0.001,60245.0,60244.0,1.180968]
[1727968798714,0.001,60245.0,60244.0,0.580968]
[1727968798904,0.0323,60266.0,60250.0,0.082999]
[1727968798905,0.082981,60264.0,60250.0,0.082999]
[1727968799110,0.03206388,60263.0,60262.0,0.082983]
[1727968799313,0.0323,60266.0,60258.0,0.44]
[1727968799314,0.115278,60266.0,60265.0,0.082979]
[1727968799515,0.14734071,60266.0,60265.0,0.082979]
[1727968799907,0.115278,60266.0,60265.0,0.082979]
[1727968800204,0.14733849,60266.0,60265.0,0.082979]
[1727968800515,0.14733849,60266.0,60256.0,0.08299]
[1727968800516,0.082985,60261.0,60260.0,0.082985]
[1727968800900,0.082992,60256.0,60247.0,0.4726]
[1727968801105,0.082983,60262.0,60258.0,0.082988]
[1727968801303,0.082983,60262.0,60248.0,0.083002]
[1727968801304,0.082982,60263.0,60248.0,0.083002]
[1727968801501,0.137279,60266.0,60265.0,0.082979]
[1727968802108,0.082983,60262.0,60261.0,0.082983]
[1727968802607,0.082983,60262.0,60255.0,0.082992]
[1727968802608,0.082991,60256.0,60255.0,0.082992]
[1727968802813,0.0543,60266.0,60245.0,0.032]
[1727968803016,0.0543,60266.0,60235.0,0.44382]
[1727968803017,0.083008,60245.0,60235.0,0.44382]
[1727968803314,0.44,60250.0,60242.0,0.443811]
[1727968803315,0.083009,60243.0,60242.0,0.443811]
[1727968803804,0.082995,60254.0,60246.0,0.083002]
[1727968804004,0.082995,60254.0,60253.0,0.082995]
[1727968804312,0.001,60256.0,60255.0,0.082993]
[1727968804611,0.0315,60262.0,60258.0,0.082986]
[1727968804815,0.082987,60259.0,60258.0,0.082986]
[1727968805114,0.082987,60259.0,60244.0,0.083008]
[1727968805115,0.083,60250.0,60235.0,0.44382]
[1727968805320,0.083009,60243.0,60242.0,0.443809]
[1727968805511,0.083009,60243.0,60242.0,0.3608]
[1727968806108,0.083008,60246.0,60242.0,0.3608]
[1727968806321,0.083008,60246.0,60244.0,0.083008]
[1727968806322,0.03206914,60245.0,60244.0,0.083008]
[1727968806616,0.083009,60243.0,60242.0,0.3608]
[1727968806808,0.083009,60243.0,60235.0,0.3608]
[1727968806809,0.083019,60236.0,60235.0,0.3608]
[1727968807009,0.083019,60236.0,60229.0,0.3608]
[1727968807212,0.523027,60230.0,60229.0,0.3608]
[1727968807411,0.523027,60230.0,60220.0,0.44384]
[1727968807718,0.083039,60221.0,60220.0,0.08304]
[1727968807907,0.083043,60219.0,60216.0,0.3608]
[1727968808109,0.083043,60219.0,60218.0,0.083044]
[1727968808310,0.083045,60217.0,60216.0,0.3608]
[1727968808808,0.44,60219.0,60201.0,0.3608]
[1727968809015,0.083056,60209.0,60201.0,0.3608]
[1727968809310,0.3608,60221.0,60201.0,0.443866]
[1727968809311,0.523062,60205.0,60201.0,0.443866]
[1727968809512,0.44,60205.0,60201.0,0.443866]
[1727968809716,0.083063,60204.0,60196.0,0.083073]
[1727968810016,0.3608,60204.0,60196.0,0.083073]
[1727968810222,0.475463,60204.0,60185.0,0.8008]
[1727968810406,0.475463,60204.0,60202.0,0.083066]
[1727968810719,0.083066,60202.0,60185.0,0.8008]
[1727968810922,0.083066,60202.0,60199.0,0.08307]
[1727968811118,0.083066,60202.0,60200.0,0.083067]
[1727968811321,0.3924,60204.0,60201.0,0.083066]
[1727968811619,0.3924,60204.0,60203.0,0.083064]
[1727968811917,0.001,60205.0,60204.0,0.083063]
[1727968812315,0.3608,60217.0,60212.0,0.083052]
[1727968812515,0.083047,60216.0,60212.0,0.083052]
[1727968812714,0.083047,60216.0,60214.0,0.083049]
[1727968812920,0.3608,60217.0,60201.0,0.44]
[1727968812921,0.10070087,60217.0,60208.0,0.083057]
[1727968813116,0.083048,60216.0,60212.0,0.083051]
[1727968813323,0.083057,60208.0,60207.0,0.3608]
[1727968813520,0.083057,60208.0,60206.0,0.08306]
[1727968813521,0.083058,60208.0,60206.0,0.08306]
[1727968813817,0.443838,60222.0,60201.0,0.083067]
[1727968813818,0.083054,60211.0,60201.0,0.083067]
[1727968814021,0.001,60217.0,60215.0,0.083047]
[1727968814214,0.001,60217.0,60207.0,0.44]
[1727968814215,0.001,60217.0,60216.0,0.083046]
[1727968814818,0.001,60217.0,60212.0,0.3608]
[1727968815024,0.083049,60214.0,60212.0,0.3608]
[1727968815324,0.083051,60213.0,60212.0,0.3608]
[1727968816114,0.083058,60208.0,60206.0,0.08306]
[1727968816410,0.44,60212.0,60196.0,0.3608]
[1727968816607,0.083062,60205.0,60204.0,0.083063]
[1727968816812,0.083062,60205.0,60196.0,0.3608]
[1727968816813,0.44,60207.0,60196.0,0.3608]
[1727968817022,0.083067,60201.0,60196.0,0.3608]
[1727968817223,0.0314,60206.0,60203.0,0.083064]
[1727968817428,0.0314,60206.0,60196.0,0.3608]
[1727968817429,0.0314,60206.0,60204.0,0.083062]
[1727968817615,0.083062,60205.0,60196.0,0.3608]
[1727968818021,0.001,60208.0,60207.0,0.083059]
[1727968818524,0.001,60208.0,60207.0,0.443859]
[1727968818724,0.083045,60217.0,60215.0,0.083048]
[1727968818919,0.083045,60217.0,60216.0,0.083046]
[1727968819125,0.10146786,60217.0,60216.0,0.083046]
[1727968819631,0.0314,60219.0,60207.0,0.37873758]
[1727968819815,0.083041,60220.0,60219.0,0.083042]
[1727968820212,0.01767876,60220.0,60219.0,0.083042]
[1727968820415,0.3608,60226.0,60219.0,0.083042]
[1727968820625,0.083034,60225.0,60208.0,0.083057]
[1727968820828,0.083057,60208.0,60196.0,0.3608]
[1727968821020,0.3608,60214.0,60201.0,0.083067]
[1727968821021,0.083053,60212.0,60201.0,0.083067]
[1727968821223,0.3608,60214.0,60189.0,0.3608]
[1727968821224,0.44,60202.0,60189.0,0.3608]
[1727968821529,0.44,60190.0,60189.0,0.3608]
[1727968821726,0.44,60190.0,60187.0,0.083086]
[1727968822025,0.44,60190.0,60177.0,0.3232]
[1727968822225,0.083085,60188.0,60186.0,0.083087]
[1727968822413,0.3608,60187.0,60182.0,0.083093]
[1727968822615,0.3608,60187.0,60177.0,0.0179214]
[1727968822616,0.083099,60178.0,60177.0,0.0179214]
[1727968822822,0.523099,60178.0,60177.0,0.0179214]
[1727968823031,0.083109,60171.0,60157.0,0.684]
[1727968823226,0.523109,60171.0,60157.0,0.3608]
[1727968823427,0.523109,60171.0,60169.0,0.083111]
[1727968823428,0.44,60171.0,60169.0,0.083111]
[1727968823819,0.44,60171.0,60157.0,0.3608]
[1727968823820,0.523109,60171.0,60165.0,0.083116]
[1727968824018,0.523109,60171.0,60157.0,0.3608]
[1727968824215,0.523109,60171.0,60167.0,0.083113]
[1727968824729,0.523109,60171.0,60157.0,0.3608]
[1727968824730,0.45806293,60171.0,60168.0,0.083111]
[1727968825031,0.083113,60168.0,60164.0,0.083118]
[1727968825329,0.083113,60168.0,60165.0,0.083117]
[1727968825819,0.083126,60158.0,60157.0,0.3608]
[1727968826021,0.44,60166.0,60156.0,0.083129]
[1727968826022,0.44,60159.0,60156.0,0.083129]
[1727968826221,0.083128,60157.0,60156.0,0.083129]
[1727968826620,0.44,60159.0,60150.0,0.01764935]
[1727968826823,0.44,60159.0,60149.0,0.3608]
[1727968826824,0.44,60154.0,60149.0,0.3608]
[1727968827134,0.44,60154.0,60152.0,0.083133]
[1727968827318,0.08312,60163.0,60149.0,0.3608]
[1727968827516,0.01812227,60165.0,60149.0,0.443938]
[1727968827517,0.083121,60162.0,60149.0,0.443938]
[1727968827724,0.3608,60167.0,60149.0,0.3608]
[1727968827926,0.44,60164.0,60149.0,0.3608]
[1727968828434,0.001,60157.0,60156.0,0.083129]
[1727968828621,0.44,60168.0,60156.0,0.3608]
[1727968828936,0.3608,60175.0,60150.0,0.0313]
[1727968828937,0.44,60163.0,60150.0,0.0313]
[1727968829225,0.083125,60159.0,60155.0,0.08313]
[1727968829425,0.52312,60163.0,60155.0,0.08313]
[1727968829628,0.44,60163.0,60155.0,0.08313]
[1727968829823,0.083121,60162.0,60156.0,0.083129]
[1727968830028,0.001,60164.0,60163.0,0.08312]
[1727968830424,0.001,60164.0,60162.0,0.083121]
[1727968830824,0.001,60164.0,60163.0,0.08312]
[1727968831338,0.001,60164.0,60157.0,0.0301]
[1727968831339,0.001,60159.0,60158.0,0.083126]
[1727968831631,0.001,60159.0,60157.0,0.01809972]
[1727968831826,0.001,60159.0,60155.0,0.08413]
[1727968832021,0.083122,60161.0,60155.0,0.08313]
[1727968832217,0.001,60164.0,60158.0,0.083126]
[1727968832436,0.001,60164.0,60163.0,0.08312]
[1727968832628,0.001,60164.0,60151.0,0.44]
[1727968832927,0.001,60159.0,60158.0,0.083125]
[1727968833429,0.001,60159.0,60158.0,1.181805]
[1727968833931,0.001,60159.0,60158.0,0.942605]
[1727968834125,0.001,60159.0,60158.0,1.542605]
[1727968834332,0.001,60159.0,60158.0,0.443925]
[1727968834522,0.084118,60164.0,60163.0,0.001]
[1727968835347,0.084118,60164.0,60158.0,0.3608]
[1727968835348,0.083125,60159.0,60158.0,0.3608]
[1727968835523,0.084125,60159.0,60158.0,0.3618]
[1727968835723,0.084125,60159.0,60158.0,0.001]
[1727968835923,0.441,60159.0,60151.0,0.3608]
[1727968836230,0.083139,60149.0,60142.0,0.3608]
[1727968836422,0.083148,60143.0,60141.0,0.01831349]
[1727968836624,0.083148,60143.0,60140.0,0.083151]
[1727968836825,0.083139,60149.0,60140.0,0.083151]
[1727968836826,0.083149,60142.0,60140.0,0.083151]
[1727968837033,0.083151,60141.0,60137.0,0.083155]
[1727968837222,0.44,60157.0,60136.0,0.44]
[1727968837430,0.083143,60147.0,60136.0,0.473]
[1727968837632,0.08315,60142.0,60136.0,0.473]
[1727968837829,0.08315,60142.0,60137.0,0.083155]
[1727968838032,0.08315,60142.0,60141.0,0.08315]
[1727968838235,0.45787463,60157.0,60136.0,0.49053649]
[1727968838433,0.45787463,60157.0,60141.0,0.44]
[1727968838434,0.01787463,60157.0,60141.0,0.44]
[1727968838641,0.001,60159.0,60158.0,0.083126]
[1727968839336,0.083112,60169.0,60154.0,0.3608]
[1727968839526,0.0314,60175.0,60158.0,0.44]
[1727968839722,0.083109,60171.0,60168.0,0.083112]
[1727968839926,0.04947787,60175.0,60162.0,0.08312]
[1727968840133,0.04947787,60175.0,60154.0,0.41009191]
[1727968840134,0.083116,60166.0,60154.0,0.41009191]
[1727968840334,0.48947787,60175.0,60147.0,0.3608]
[1727968840335,0.44,60160.0,60147.0,0.3608]
[1727968840522,0.44,60160.0,60149.0,0.083139]
[1727968840723,0.083137,60150.0,60149.0,0.083139]
[1727968841134,0.44,60160.0,60147.0,0.3608]
[1727968841530,0.443924,60161.0,60147.0,0.3608]
[1727968841531,0.3608,60161.0,60160.0,0.083124]
[1727968842433,0.8008,60161.0,60147.0,0.3608]
[1727968842637,0.083136,60152.0,60147.0,0.3608]
[1727968842832,0.083136,60152.0,60150.0,0.083137]
[1727968843130,0.083128,60157.0,60147.0,0.3608]
[1727968843330,0.083136,60152.0,60147.0,0.3608]
[1727968843528,0.083136,60151.0,60149.0,0.083139]
[1727968843736,0.083137,60150.0,60149.0,0.083139]
[1727968845037,0.8018,60161.0,60147.0,0.3608]
[1727968845038,0.3608,60161.0,60147.0,0.3608]
[1727968845344,0.083139,60149.0,60148.0,0.08314]
[1727968845544,0.083132,60154.0,60152.0,0.083135]
[1727968845842,0.08313,60156.0,60147.0,0.3608]
[1727968846041,0.37920156,60161.0,60160.0,0.083124]
[1727968846437,0.0322,60167.0,60157.0,0.3608]
[1727968846643,0.01821631,60167.0,60163.0,0.3608]
[1727968846940,0.083112,60169.0,60163.0,0.3608]
[1727968847135,0.083112,60169.0,60168.0,0.083113]
[1727968847637,0.083118,60164.0,60163.0,0.3608]
[1727968848440,0.083118,60164.0,60158.0,0.083126]
[1727968848441,0.083125,60159.0,60158.0,0.083126]
[1727968848839,0.001,60164.0,60157.0,0.3608]
[1727968849036,0.001,60164.0,60163.0,0.08312]
[1727968849445,0.001,60164.0,60163.0,0.58176]
[1727968850431,0.44,60187.0,60163.0,0.58176]
[1727968850432,0.083094,60182.0,60163.0,1.45944]
[1727968850632,0.083094,60182.0,60181.0,0.083095]
[1727968851036,0.083094,60182.0,60171.0,0.44]
[1727968851037,0.37833807,60187.0,60186.0,0.083088]
[1727968851340,0.3608,60201.0,60186.0,0.083088]
[1727968851540,0.3608,60201.0,60183.0,0.3608]
[1727968851541,0.3608,60201.0,60194.0,0.44]
[1727968851739,0.0312,60204.0,60202.0,0.083065]
[1727968851943,0.083067,60201.0,60198.0,0.083071]
[1727968852341,0.083074,60196.0,60195.0,0.3608]
[1727968852846,0.083074,60196.0,60193.0,0.083077]
[1727968853049,0.44,60203.0,60194.0,0.083076]
[1727968853348,0.1014474,60204.0,60200.0,0.083068]
[1727968853544,0.0183834,60204.0,60203.0,0.083064]
[1727968853852,0.0951,60213.0,60201.0,0.083066]
[1727968854045,0.083063,60204.0,60201.0,0.083066]
[1727968854239,0.0951,60213.0,60201.0,0.083066]
[1727968854441,0.083066,60202.0,60197.0,0.083072]
[1727968854641,0.0951,60213.0,60197.0,0.083072]
[1727968854642,0.44,60209.0,60197.0,0.083072]
[1727968854850,0.44,60209.0,60194.0,0.001]
[1727968854851,0.8008,60204.0,60194.0,0.001]
[1727968855036,0.083064,60203.0,60194.0,0.001]
[1727968855235,0.36168,60204.0,60202.0,0.083066]
[1727968855438,0.083064,60204.0,60202.0,0.083066]
[1727968856040,0.083066,60202.0,60198.0,0.083071]
[1727968856241,0.083065,60203.0,60199.0,0.08307]
[1727968856435,0.083053,60211.0,60194.0,0.3618]
[1727968856639,0.08306,60206.0,60203.0,0.083063]
[1727968856840,0.003,60204.0,60203.0,0.083063]
[1727968857853,0.001,60206.0,60196.0,0.44]
[1727968858249,0.001,60206.0,60204.0,0.083062]
[1727968858443,0.001,60206.0,60196.0,0.44]
[1727968858444,0.083059,60207.0,60205.0,0.083062]
[1727968858641,0.0647,60213.0,60203.0,0.001]
[1727968858847,0.083053,60211.0,60203.0,0.001]
[1727968859046,0.083053,60211.0,60209.0,0.083055]
[1727968859346,0.05099241,60213.0,60203.0,0.001]
[1727968859545,0.083058,60208.0,60205.0,0.083061]
[1727968860142,0.083058,60208.0,60206.0,0.08306]
[1727968860348,0.083052,60212.0,60204.0,0.001]
[1727968860549,0.05099241,60213.0,60212.0,0.083052]
[1727968860851,0.3608,60225.0,60208.0,0.44]
[1727968861045,0.3608,60225.0,60220.0,0.08304]
[1727968861046,0.083036,60224.0,60220.0,0.08304]
[1727968861248,0.0309,60227.0,60222.0,0.44]
[1727968861450,0.3608,60232.0,60222.0,0.44]
[1727968861753,0.083031,60227.0,60226.0,0.083032]
[1727968862062,0.083028,60229.0,60222.0,0.44]
[1727968862353,0.37866767,60232.0,60227.0,0.083031]
[1727968862354,0.46169267,60232.0,60227.0,0.083031]
[1727968862542,0.083031,60228.0,60222.0,0.44]
[1727968862740,0.46169267,60232.0,60231.0,0.083026]
[1727968862741,0.01786767,60232.0,60231.0,0.083026]
[1727968862947,0.083009,60243.0,60223.0,0.3608]
[1727968862948,0.115999,60251.0,60228.0,0.3608]
[1727968863241,0.083,60250.0,60245.0,0.083006]
[1727968863446,0.083002,60248.0,60245.0,0.083006]
[1727968863647,0.04927802,60251.0,60239.0,0.44]
[1727968863953,0.04927802,60251.0,60233.0,0.44]
[1727968864340,0.083012,60241.0,60237.0,0.083017]
[1727968864544,0.04927802,60251.0,60230.0,0.0178479]
[1727968864849,0.083019,60236.0,60234.0,0.08302]
[1727968865040,0.44,60249.0,60234.0,0.08302]
[1727968865041,0.08302,60235.0,60234.0,0.08302]
[1727968865640,0.083024,60233.0,60231.0,0.083024]
[1727968865848,0.08301,60243.0,60230.0,0.001]
[1727968865849,0.083026,60231.0,60230.0,0.001]
[1727968866153,0.443826,60231.0,60230.0,0.001]
[1727968866350,0.083026,60231.0,60230.0,0.001]
[1727968866854,0.083026,60231.0,60214.0,0.4254]
[1727968866855,0.083038,60223.0,60219.0,0.083042]
[1727968867051,0.083041,60221.0,60217.0,0.083045]
[1727968867252,0.083048,60215.0,60214.0,0.3608]
[1727968867456,0.3608,60215.0,60197.0,0.3608]
[1727968867749,0.083066,60202.0,60200.0,0.083068]
[1727968867941,0.083069,60200.0,60197.0,0.3608]
[1727968868143,0.083069,60200.0,60199.0,0.08307]
[1727968868549,0.08306,60206.0,60205.0,0.08306]
[1727968868757,0.01760959,60211.0,60208.0,0.083057]
[1727968869059,0.3608,60215.0,60204.0,0.44]
[1727968869245,0.083051,60213.0,60212.0,0.083052]
[1727968869553,0.083051,60213.0,60210.0,0.083054]
[1727968869745,0.083051,60213.0,60209.0,0.44]
[1727968869943,0.083051,60213.0,60212.0,0.083052]
[1727968870149,0.01802275,60215.0,60212.0,0.083052]
[1727968870349,0.0303,60217.0,60213.0,0.08305]
[1727968870545,0.3608,60221.0,60218.0,0.083042]
[1727968870757,0.37916945,60221.0,60204.0,0.01799581]
[1727968871054,0.083055,60210.0,60209.0,0.011]
[1727968871351,0.083071,60198.0,60197.0,0.3608]
[1727968871765,0.44,60205.0,60188.0,0.0311]
[1727968872051,0.44,60205.0,60181.0,0.44088]
[1727968872052,0.3608,60200.0,60181.0,0.44088]
[1727968872252,0.8008,60200.0,60192.0,0.083079]
[1727968872447,0.3608,60200.0,60198.0,0.08307]
[1727968872753,0.3608,60206.0,60196.0,0.44]
[1727968872950,0.3608,60206.0,60190.0,0.3608]
[1727968872951,0.3608,60206.0,60191.0,0.44]
[1727968873152,0.37911464,60206.0,60201.0,0.44]
[1727968873354,0.3608,60216.0,60201.0,0.44]
[1727968873754,0.3608,60216.0,60191.0,0.0635]
[1727968873755,0.3608,60209.0,60191.0,0.0635]
[1727968874057,0.37858269,60216.0,60201.0,0.44]
[1727968874253,0.37858269,60216.0,60208.0,0.44]
[1727968874254,0.3608,60216.0,60208.0,0.44]
[1727968874453,0.3608,60223.0,60213.0,0.44]
[1727968874759,0.3608,60223.0,60208.0,0.3608]
[1727968874760,0.3608,60223.0,60209.0,0.0317]
[1727968874953,0.3608,60223.0,60216.0,0.083046]
[1727968875161,0.0304,60227.0,60210.0,0.083054]
[1727968875358,0.0304,60227.0,60209.0,0.0317]
[1727968875359,0.04821683,60227.0,60211.0,0.083052]
[1727968875652,0.04821683,60227.0,60215.0,0.083048]
[1727968875653,0.008,60216.0,60215.0,0.083048]
[1727968877052,0.05721683,60227.0,60225.0,0.083033]
[1727968877254,0.05721683,60227.0,60226.0,0.083033]
[1727968877762,0.05721683,60227.0,60222.0,0.083038]
[1727968878058,0.014,60216.0,60215.0,0.083048]
[1727968878647,0.03181683,60227.0,60226.0,0.083033]
[1727968879045,0.03181683,60227.0,60215.0,0.443848]
[1727968879345,0.03181683,60227.0,60226.0,0.083033]
[1727968879745,0.014,60227.0,60226.0,0.083033]
[1727968880161,0.3932,60249.0,60244.0,0.083007]
[1727968880162,0.0331,60248.0,60244.0,0.083007]
[1727968880354,0.0331,60248.0,60238.0,0.44]
[1727968880550,0.37880685,60249.0,60238.0,0.44]
[1727968880551,0.37880685,60249.0,60248.0,0.083002]
[1727968880757,0.37880685,60249.0,60228.0,0.08303]
[1727968880758,1.47672685,60249.0,60228.0,0.08303]
[1727968880958,0.44,60239.0,60224.0,0.72248]
[1727968881159,0.44,60239.0,60219.0,0.3608]
[1727968881160,0.44,60234.0,60219.0,0.3608]
[1727968881347,0.083026,60231.0,60223.0,0.083036]
[1727968881662,0.44,60228.0,60225.0,0.083034]
[1727968881850,0.0309,60233.0,60219.0,0.3608]
[1727968882162,0.0661,60238.0,60221.0,0.083039]
[1727968882347,0.0331,60238.0,60235.0,0.083019]
[1727968882552,0.03207963,60237.0,60235.0,0.083019]
[1727968882759,0.03207963,60237.0,60219.0,0.3608]
[1727968882760,0.083024,60233.0,60219.0,0.3608]
[1727968883058,0.44,60234.0,60219.0,0.3608]
[1727968883260,0.05101696,60238.0,60225.0,0.44]
[1727968883461,0.0645,60246.0,60231.0,0.44]
[1727968883651,0.011,60248.0,60244.0,0.083008]
[1727968883652,0.03207664,60245.0,60244.0,0.083008]
[1727968883959,0.3608,60254.0,60253.0,0.082995]
[1727968884255,0.03207556,60254.0,60253.0,0.082995]
[1727968884456,0.01814873,60256.0,60255.0,0.082993]
[1727968884652,0.0305,60258.0,60257.0,0.08299]
[1727968885057,0.3608,60261.0,60248.0,0.083002]
[1727968885251,0.011,60254.0,60253.0,0.083995]
[1727968887062,0.3783623,60268.0,60252.0,0.80172]
[1727968887063,0.011,60258.0,60257.0,0.001]
[1727968887250,0.093988,60258.0,60257.0,0.001]
[1727968887449,0.093988,60258.0,60244.0,0.3608]
[1727968887450,0.082996,60253.0,60244.0,0.443807]
[1727968887650,0.082996,60253.0,60239.0,0.3608]